bitfinex-derivatives/quotes_BTCF0:USTF0_20210404
["timestamp","ask_amount","ask_price","bid_price","bid_amount"]
[1617508967562,1.5,57556.0,57507.0,0.42567504]
[1617508967563,3.67845,57540.0,57507.0,0.34864026]
[1617508967961,1.0,57534.0,57509.0,0.10725655]
[1617508968464,0.2,57539.0,57509.0,0.10725655]
[1617508968465,1.0,57536.0,57509.0,0.10725655]
[1617508968866,1.0,57538.0,57509.0,1.10725655]
[1617508969965,0.10725655,57510.0,57509.0,1.10725655]
[1617508970365,0.10725655,57510.0,57509.0,0.10725655]
[1617508970766,0.10725655,57510.0,57509.0,0.45816597]
[1617508971869,3.0633,57533.0,57509.0,0.51931064]
[1617508972069,3.0633,57533.0,57510.0,1.5]
[1617508972468,1.0,57549.0,57520.0,1.0]
[1617508972669,1.0,57549.0,57522.0,3.2614]
[1617508972868,1.0,57549.0,57522.0,3.40511]
[1617508973670,1.0,57547.0,57522.0,3.40511]
[1617508973869,1.0,57537.0,57524.0,0.10725655]
[1617508974070,1.15369,57537.0,57519.0,0.35049638]
[1617508974273,1.0,57528.0,57519.0,0.35049638]
[1617508974471,1.0,57533.0,57516.0,0.35072011]
[1617508974769,1.0,57531.0,57516.0,0.35072011]
[1617508975172,3.7193,57534.0,57511.0,0.35103058]
[1617508975173,1.0,57530.0,57511.0,0.35103058]
[1617508975873,0.10725655,57512.0,57511.0,0.35103058]
[1617508976273,0.10725655,57512.0,57510.0,0.35117823]
[1617508976674,1.0,57530.0,57511.0,0.06114645]
[1617508977275,1.0,57532.0,57510.0,0.35117823]
[1617508977474,3.7193,57534.0,57510.0,1.49121823]
[1617508977674,3.7193,57534.0,57512.0,0.06114368]
[1617508977875,3.7193,57534.0,57513.0,1.0]
[1617508978076,3.7193,57534.0,57517.0,0.10725655]
[1617508978275,1.0,57549.0,57520.0,1.0]
[1617508978476,3.722,57551.0,57524.0,1.0]
[1617508978678,3.722,57551.0,57524.0,1.10369]
[1617508978877,3.722,57551.0,57526.0,1.0]
[1617508979077,3.722,57551.0,57532.0,1.0]
[1617508979476,3.722,57551.0,57530.0,1.0]
[1617508979679,3.722,57551.0,57527.0,1.0]
[1617508980078,0.10725655,57528.0,57524.0,0.10725655]
[1617508980879,0.10725655,57528.0,57517.0,0.35102293]
[1617508981280,0.10725655,57528.0,57514.0,0.35121706]
[1617508981678,0.10725655,57528.0,57513.0,0.3513574]
[1617508982078,0.10725655,57514.0,57513.0,0.3513574]
[1617508982279,0.10725655,57514.0,57512.0,0.35135836]
[1617508982680,0.10725655,57514.0,57513.0,0.06114331]
[1617508983078,0.10725655,57514.0,57513.0,0.3516339]
[1617508983480,0.10623751,57514.0,57513.0,0.3516339]
[1617508983882,0.10623751,57514.0,57513.0,0.41277608]
[1617508984580,0.10623751,57514.0,57513.0,1.41277608]
[1617508984781,3.1759,57533.0,57513.0,1.41277608]
[1617508984980,1.0,57541.0,57513.0,1.41277608]
[1617508985181,1.0,57549.0,57520.0,1.0]
[1617508985581,1.0,57549.0,57523.0,0.350346]
[1617508985981,1.0,57549.0,57523.0,0.10725655]
[1617508985982,0.10725655,57524.0,57523.0,0.10725655]
[1617508986181,0.10725655,57524.0,57522.0,0.42794395]
[1617508986581,0.10725655,57524.0,57521.0,0.06113001]
[1617508986582,0.10725655,57524.0,57521.0,0.35053356]
[1617508987383,0.10725655,57524.0,57523.0,0.78190662]
[1617508987982,0.10725655,57524.0,57523.0,0.88916317]
[1617508988783,0.10725655,57524.0,57523.0,0.95029832]
[1617508988992,0.10725655,57524.0,57523.0,0.84304177]
[1617508989183,0.10725655,57524.0,57523.0,0.41299313]
[1617508989583,0.10725655,57524.0,57523.0,0.35185798]
[1617508989984,0.10725655,57524.0,57523.0,0.41299701]
[1617508990485,0.10725655,57524.0,57523.0,0.35185798]
[1617508992289,0.10725655,57524.0,57522.0,0.35227233]
[1617508993890,0.10725655,57524.0,57512.0,0.06114125]
[1617508993891,0.10725655,57524.0,57520.0,0.35246989]
[1617508994191,0.10725655,57524.0,57521.0,0.35241707]
[1617508994990,0.10725655,57524.0,57517.0,0.4918754]
[1617508994991,0.10725655,57524.0,57522.0,0.35236931]
[1617508996995,0.10725655,57524.0,57523.0,0.35278188]
[1617508997195,0.10725655,57524.0,57523.0,0.41392389]
[1617508997594,0.10725655,57524.0,57523.0,0.35278188]
[1617508998796,0.10725655,57524.0,57523.0,1.28099411]
[1617509000997,0.10725655,57524.0,57523.0,0.92821223]
[1617509001198,0.10725655,57524.0,57523.0,1.34505255]
[1617509001398,3.10185655,57524.0,57523.0,1.34505255]
[1617509001600,3.10185655,57524.0,57523.0,1.28390899]
[1617509003201,0.10725655,57524.0,57523.0,1.28390899]
[1617509004201,0.10725655,57524.0,57523.0,1.39116554]
[1617509004806,0.10725655,57524.0,57523.0,1.45230502]
[1617509011111,0.10725655,57524.0,57523.0,2.00395335]
[1617509012515,0.10725655,57524.0,57523.0,1.45230502]
[1617509016117,2.8497,57527.0,57523.0,1.45230502]
[1617509016318,2.8497,57527.0,57523.0,2.00413112]
[1617509016719,2.8497,57527.0,57526.0,1.83272329]
[1617509016918,0.44766716,57545.0,57526.0,1.83272329]
[1617509017119,0.44765076,57546.0,57526.0,1.83272329]
[1617509017318,0.44765076,57546.0,57526.0,2.83272329]
[1617509017519,0.44765076,57546.0,57530.0,1.0]
[1617509017719,0.44763958,57548.0,57544.0,0.35428441]
[1617509017921,0.44763958,57548.0,57544.0,0.48616441]
[1617509018121,0.44763441,57549.0,57547.0,0.10725655]
[1617509018521,0.44763441,57549.0,57548.0,0.41538669]
[1617509019024,3.1787,57550.0,57547.0,0.10725655]
[1617509020223,0.10725655,57548.0,57547.0,0.10725655]
[1617509020824,0.44691766,57554.0,57547.0,0.46080342]
[1617509021023,0.44691766,57554.0,57548.0,1.0]
[1617509021224,0.44680589,57555.0,57547.0,1.46080342]
[1617509021826,0.50772012,57560.0,57547.0,1.46080342]
[1617509021827,0.44677355,57564.0,57554.0,0.35281365]
[1617509022226,0.44675608,57566.0,57561.0,0.10725655]
[1617509022425,0.44675608,57566.0,57561.0,0.24215655]
[1617509022627,0.44672522,57567.0,57561.0,0.24215655]
[1617509023129,0.44672194,57568.0,57561.0,0.59462231]
[1617509023533,0.44672194,57568.0,57561.0,0.24215655]
[1617509024129,0.44671439,57569.0,57562.0,0.06110827]
[1617509024528,0.50762473,57574.0,57561.0,0.54845701]
[1617509024529,0.44672047,57568.0,57561.0,0.54845701]
[1617509024931,0.44672227,57567.0,57561.0,0.1349]
[1617509025332,0.44672268,57569.0,57561.0,0.48733105]
[1617509025831,0.44672318,57568.0,57561.0,0.48733105]
[1617509026231,0.44672318,57568.0,57561.0,0.1349]
[1617509026431,0.04614714,57562.0,57561.0,0.1349]
[1617509027033,0.04614714,57562.0,57560.0,0.35247168]
[1617509028032,0.04614714,57562.0,57557.0,0.10725655]
[1617509028233,1.0,57560.0,57557.0,0.10725655]
[1617509028435,1.0,57561.0,57555.0,0.35283769]
[1617509028635,1.0,57561.0,57555.0,0.52069769]
[1617509028835,0.04614714,57562.0,57557.0,0.35273309]
[1617509029243,0.04614714,57562.0,57558.0,0.35266418]
[1617509029835,0.04614714,57562.0,57561.0,0.35238075]
[1617509030238,3.6324,57556.0,57554.0,0.35149658]
[1617509030435,0.10725655,57555.0,57554.0,0.35149658]
[1617509030636,0.10725655,57555.0,57552.0,0.35137534]
[1617509031037,0.10725655,57555.0,57551.0,0.45865929]
[1617509031438,0.10725655,57555.0,57554.0,0.35113111]
[1617509031636,3.6324,57556.0,57554.0,0.49429111]
[1617509032237,1.4453982,57575.0,57555.0,0.35107247]
[1617509032437,1.4453982,57575.0,57571.0,0.10725655]
[1617509032636,0.4453982,57575.0,57571.0,0.27827655]
[1617509032839,1.0,57586.0,57571.0,0.27827655]
[1617509032840,0.44537316,57579.0,57571.0,0.27827655]
[1617509033238,0.44536502,57582.0,57571.0,0.27827655]
[1617509033638,0.44534826,57583.0,57571.0,0.27827655]
[1617509034238,0.4453505,57584.0,57571.0,0.27827655]
[1617509034438,0.4453505,57584.0,57582.0,0.10725655]
[1617509036242,0.44533545,57585.0,57582.0,0.10725655]
[1617509036442,0.10725655,57583.0,57582.0,0.10725655]
[1617509037542,0.10725655,57583.0,57571.0,0.17102]
[1617509037743,0.10725655,57583.0,57566.0,0.35033108]
[1617509038344,1.0,57580.0,57569.0,0.10725655]
[1617509038544,1.64145,57580.0,57563.0,0.3504389]
[1617509038744,3.6366,57567.0,57563.0,0.3504389]
[1617509038944,3.77583,57567.0,57563.0,0.3504389]
[1617509039145,3.77583,57567.0,57558.0,0.35085175]
[1617509039547,3.77583,57567.0,57557.0,0.35098746]
[1617509039946,3.6366,57567.0,57556.0,0.35098756]
[1617509040347,3.6366,57567.0,57561.0,0.35059754]
[1617509040549,0.10725655,57572.0,57566.0,0.10725655]
[1617509040948,1.0,57571.0,57563.0,0.35040227]
[1617509041148,1.0,57567.0,57563.0,0.35040227]
[1617509041350,0.12532,57567.0,57561.0,0.35057362]
[1617509041549,1.12532,57567.0,57561.0,0.35057362]
[1617509041749,0.12532,57567.0,57555.0,0.35055968]
[1617509042549,0.12532,57567.0,57566.0,0.10725655]
[1617509042749,0.44491039,57578.0,57566.0,0.23756655]
[1617509042950,3.5269,57579.0,57566.0,0.23756655]
[1617509043351,2.5269,57579.0,57566.0,0.23756655]
[1617509044450,0.10725655,57567.0,57566.0,0.23756655]
[1617509052758,0.10725655,57567.0,57566.0,0.13031]
[1617509052961,0.10725655,57567.0,57557.0,0.35042237]
[1617509053160,0.10725655,57567.0,57556.0,0.35041486]
[1617509053360,3.7505,57559.0,57556.0,0.35041486]
[1617509053961,3.7505,57559.0,57551.0,0.35092351]
[1617509054361,3.7505,57559.0,57541.0,0.06111057]
[1617509054362,3.7505,57559.0,57550.0,0.35098059]
[1617509054561,0.10725655,57551.0,57550.0,0.35098059]
[1617509054761,0.10725655,57551.0,57549.0,0.35107253]
[1617509055563,0.10725655,57551.0,57548.0,0.45845462]
[1617509056366,0.10725655,57551.0,57548.0,0.10725655]
[1617509056766,0.10725655,57551.0,57549.0,0.351833]
[1617509058066,0.10725655,57551.0,57548.0,0.10725655]
[1617509058266,0.10725655,57551.0,57547.0,0.35228963]
[1617509058466,0.10725655,57551.0,57546.0,0.35230849]
[1617509059267,0.10725655,57551.0,57547.0,0.35226576]
[1617509059666,0.10725655,57551.0,57546.0,0.35230046]
[1617509059866,1.0,57548.0,57546.0,0.35230046]
[1617509060071,1.0,57548.0,57542.0,0.78318797]
[1617509060267,1.60725655,57551.0,57542.0,0.78318797]
[1617509060268,1.0,57547.0,57542.0,0.35261175]
[1617509060468,4.738,57543.0,57542.0,0.35261175]
[1617509060669,4.98995655,57543.0,57537.0,0.35293953]
[1617509060869,3.98995655,57543.0,57537.0,0.35293953]
[1617509061471,3.98995655,57543.0,57533.0,0.43137054]
[1617509061472,3.98995655,57543.0,57536.0,0.35306242]
[1617509061870,3.98995655,57543.0,57537.0,0.35300447]
[1617509062070,3.84525655,57543.0,57537.0,0.35300447]
[1617509063976,0.10725655,57543.0,57537.0,0.35300447]
[1617509064372,0.10725655,57543.0,57539.0,0.35303774]
[1617509064571,0.10725655,57543.0,57541.0,0.10725655]
[1617509064773,0.10725655,57543.0,57541.0,0.46018487]
[1617509065373,0.10725655,57543.0,57542.0,0.41400607]
[1617509066072,0.10725655,57543.0,57540.0,0.35306587]
[1617509066673,0.10725655,57543.0,57531.0,0.06112322]
[1617509066674,0.10725655,57543.0,57539.0,0.35313459]
[1617509067575,0.10725655,57543.0,57541.0,0.3530585]
[1617509068076,0.10725655,57543.0,57534.0,0.10725655]
[1617509068576,0.10725655,57535.0,57534.0,0.10725655]
[1617509069177,0.10725655,57535.0,57534.0,0.89314891]
[1617509069981,0.10725655,57535.0,57534.0,0.95427259]
[1617509071179,0.10725655,57535.0,57534.0,0.84701604]
[1617509071780,0.10725655,57535.0,57534.0,0.78589236]
[1617509074386,0.10725655,57535.0,57534.0,0.89841236]
[1617509074786,0.10725655,57535.0,57534.0,0.95953933]
[1617509075188,1.0,57546.0,57534.0,0.95953933]
[1617509075392,2.9071,57547.0,57534.0,0.95953933]
[1617509075787,3.9071,57547.0,57534.0,0.95953933]
[1617509075987,2.9071,57547.0,57534.0,0.95953933]
[1617509076188,2.9071,57547.0,57544.0,0.35371432]
[1617509076589,0.10725655,57545.0,57543.0,0.35375731]
[1617509077591,0.10725655,57545.0,57544.0,0.35371669]
[1617509082397,0.10725655,57545.0,57544.0,3.38141669]
[1617509082598,0.10725655,57545.0,57544.0,3.92070307]
[1617509082998,0.10725655,57545.0,57544.0,4.07350684]
[1617509083798,0.10725655,57545.0,57544.0,4.01365805]
[1617509087201,0.10725655,57545.0,57544.0,0.98595805]
[1617509087401,0.10725655,57545.0,57544.0,0.8787015]
[1617509087800,0.10725655,57545.0,57544.0,0.78701924]
[1617509088315,0.10725655,57545.0,57544.0,0.91779924]
[1617509088724,0.10725655,57545.0,57544.0,1.08618084]
[1617509090504,0.10725655,57545.0,57544.0,3.93808084]
[1617509091104,0.10725655,57545.0,57544.0,4.02976471]
[1617509092207,0.10725655,57545.0,57544.0,3.96863966]
[1617509093409,0.10725655,57545.0,57544.0,1.11673966]
[1617509093809,0.10725655,57545.0,57544.0,1.00948311]
[1617509094210,0.10725655,57545.0,57544.0,0.91779924]
[1617509094610,0.10725655,57545.0,57544.0,0.48493866]
[1617509095411,0.10725655,57545.0,57544.0,0.91828245]
[1617509096613,0.10725655,57545.0,57544.0,1.025539]
[1617509097213,0.10725655,57545.0,57544.0,0.91828245]
[1617509097914,0.10725655,57545.0,57544.0,0.48493866]
[1617509098113,0.10725655,57545.0,57544.0,0.35415866]
[1617509100016,0.10725655,57545.0,57544.0,0.4152835]
[1617509100517,0.10725655,57545.0,57544.0,0.35415866]
[1617509100916,0.10725655,57545.0,57544.0,0.41528361]
[1617509101218,0.10725655,57545.0,57544.0,0.35415866]
[1617509101719,0.10725655,57545.0,57544.0,0.78784966]
[1617509103021,0.10725655,57545.0,57544.0,0.35415866]
[1617509103221,1.10725655,57545.0,57544.0,0.35415866]
[1617509103821,1.10725655,57545.0,57542.0,0.35542544]
[1617509103822,1.75995655,57545.0,57542.0,0.35542544]
[1617509104022,2.75995655,57545.0,57542.0,0.35542544]
[1617509104223,0.44704207,57543.0,57537.0,0.35577503]
[1617509104422,3.14704207,57543.0,57537.0,0.35577503]
[1617509104824,0.10725655,57538.0,57535.0,0.35584695]
[1617509105024,1.5,57537.0,57533.0,0.35596519]
[1617509105225,1.0,57536.0,57533.0,0.35596519]
[1617509105426,1.5,57535.0,57533.0,0.35596519]
[1617509105624,1.0,57534.0,57532.0,0.35601086]
[1617509105824,1.5,57533.0,57532.0,0.35601086]
[1617509106027,1.61457,57533.0,57529.0,0.35624458]
[1617509106425,2.06168873,57533.0,57528.0,0.35630275]
[1617509106624,1.0,57530.0,57528.0,0.35630275]
[1617509106825,0.10725655,57529.0,57528.0,0.35630275]
[1617509107226,0.10725655,57529.0,57522.0,0.35546973]
[1617509107427,3.4478,57523.0,57522.0,0.35546973]
[1617509107626,3.4478,57523.0,57518.0,0.434463]
[1617509107627,3.4478,57523.0,57521.0,0.35553379]
[1617509108027,4.4478,57523.0,57521.0,0.35553379]
[1617509108726,0.10725655,57522.0,57521.0,0.35553379]
[1617509109927,1.10725655,57522.0,57521.0,0.35553379]
[1617509110328,1.10725655,57522.0,57520.0,0.3556119]
[1617509110929,0.10725655,57522.0,57521.0,0.06114715]
[1617509111328,0.10725655,57522.0,57520.0,0.3556119]
[1617509111528,2.60725655,57522.0,57520.0,0.3556119]
[1617509111929,1.0,57521.0,57519.0,0.35566681]
[1617509112128,1.5,57520.0,57519.0,0.35566681]
[1617509112330,1.5,57520.0,57511.0,0.35625378]
[1617509112529,1.0,57520.0,57511.0,0.35625378]
[1617509112731,0.15098,57521.0,57508.0,0.43530055]
[1617509112732,3.41755655,57512.0,57508.0,0.43530055]
[1617509113131,3.41755655,57512.0,57511.0,0.35618067]
[1617509113729,4.41755655,57512.0,57511.0,0.35618067]
[1617509114330,4.41755655,57512.0,57510.0,0.35655402]
[1617509114931,3.41755655,57512.0,57511.0,0.41760353]
[1617509115131,4.41755655,57512.0,57511.0,0.41760353]
[1617509115332,4.41755655,57512.0,57511.0,0.35644645]
[1617509115531,3.41755655,57512.0,57511.0,0.35644645]
[1617509115734,3.41755655,57512.0,57511.0,0.41760247]
[1617509116134,3.41755655,57512.0,57511.0,0.35644645]
[1617509116534,3.41755655,57512.0,57511.0,0.79187883]
[1617509116834,4.41755655,57512.0,57511.0,0.79187883]
[1617509117034,4.41755655,57512.0,57511.0,0.35644645]
[1617509117235,3.41755655,57512.0,57511.0,0.35644645]
[1617509117434,4.41755655,57512.0,57511.0,0.35644645]
[1617509118340,3.41755655,57512.0,57510.0,0.35557592]
[1617509118536,4.41755655,57512.0,57510.0,0.35557592]
[1617509118737,1.0,57511.0,57510.0,0.35557592]
[1617509119036,4.41755655,57512.0,57510.0,0.35557592]
[1617509119237,4.41755655,57512.0,57508.0,0.35573337]
[1617509119437,4.52963655,57512.0,57509.0,0.35567548]
[1617509119637,1.0,57511.0,57509.0,0.35567548]
[1617509119837,3.52963655,57512.0,57509.0,0.35567548]
[1617509120038,1.0,57510.0,57509.0,0.35567548]
[1617509120839,3.41755655,57512.0,57509.0,0.35567548]
[1617509121639,4.41755655,57512.0,57509.0,0.35567548]
[1617509122241,3.41755655,57512.0,57509.0,0.35567548]
[1617509122744,3.41755655,57512.0,57510.0,0.35565622]
[1617509123844,3.41755655,57512.0,57511.0,0.35556906]
[1617509124043,3.41755655,57512.0,57511.0,0.46610906]
[1617509124244,3.41755655,57512.0,57511.0,0.52726566]
[1617509125045,3.41755655,57512.0,57511.0,0.1716966]
[1617509125647,0.10725655,57512.0,57511.0,0.0611566]
[1617509126247,1.10725655,57512.0,57511.0,0.0611566]
[1617509126448,1.10725655,57512.0,57510.0,2.7037]
[1617509127548,1.10725655,57512.0,57507.0,0.35554796]
[1617509127749,2.9057,57508.0,57506.0,0.10725655]
[1617509128149,2.9057,57508.0,57506.0,0.46285485]
[1617509128651,2.9057,57508.0,57507.0,0.35550113]
[1617509128849,2.9057,57508.0,57507.0,0.46031113]
[1617509129050,2.9057,57508.0,57507.0,0.52146845]
[1617509129650,1.0,57517.0,57507.0,0.52146845]
[1617509129851,0.4811,57525.0,57510.0,3.5026]
[1617509130252,0.4811,57525.0,57515.0,0.3546308]
[1617509130753,0.4811,57525.0,57516.0,0.35452421]
[1617509130954,0.4811,57525.0,57520.0,0.10725655]
[1617509131152,1.0,57526.0,57520.0,0.25636655]
[1617509131352,2.6236,57529.0,57520.0,0.25636655]
[1617509131553,1.0,57525.0,57520.0,0.25636655]
[1617509131752,2.6236,57529.0,57520.0,0.25636655]
[1617509131954,1.0,57526.0,57520.0,0.25636655]
[1617509132153,1.0,57527.0,57520.0,0.25636655]
[1617509132755,0.4446543,57544.0,57531.0,3.4864]
[1617509132954,0.10725655,57532.0,57531.0,3.4864]
[1617509133954,0.10725655,57532.0,57526.0,0.10725655]
[1617509133955,0.10725655,57532.0,57526.0,0.46111685]
[1617509134355,0.10725655,57532.0,57526.0,0.10725655]
[1617509135856,2.72395655,57532.0,57526.0,0.10725655]
[1617509137259,3.72395655,57532.0,57526.0,0.10725655]
[1617509138459,1.0,57531.0,57526.0,0.10725655]
[1617509138662,1.0,57531.0,57522.0,0.35390577]
[1617509138860,1.0,57528.0,57522.0,0.35390577]
[1617509139060,0.10725655,57523.0,57522.0,0.35390577]
[1617509139461,0.10725655,57523.0,57521.0,0.3540018]
[1617509140764,0.10725655,57523.0,57522.0,0.35430609]
[1617509140964,0.10725655,57523.0,57522.0,0.47292609]
[1617509141665,0.10725655,57523.0,57522.0,0.53406629]
[1617509147070,0.10725655,57523.0,57522.0,0.96751927]
[1617509147669,2.6167,57532.0,57522.0,0.96751927]
[1617509148271,2.6167,57532.0,57530.0,0.35445353]
[1617509149171,0.10725655,57531.0,57529.0,0.46173804]
[1617509149573,0.10725655,57531.0,57530.0,0.06113705]
[1617509150974,0.10725655,57531.0,57530.0,0.4156998]
[1617509153076,0.10725655,57531.0,57529.0,0.10725655]
[1617509159488,0.10725655,57531.0,57529.0,0.54102337]
[1617509159887,0.10725655,57531.0,57529.0,0.43376682]
[1617509160286,0.10725655,57531.0,57528.0,0.43378856]
[1617509160888,0.10725655,57531.0,57529.0,0.43371378]
[1617509161089,1.0,57530.0,57529.0,0.43371378]
[1617509161689,1.0,57530.0,57527.0,0.43390704]
[1617509162090,1.0,57530.0,57526.0,0.43405011]
[1617509162289,0.10725655,57531.0,57526.0,0.43405011]
[1617509162489,1.5,57530.0,57522.0,0.43455625]
[1617509162689,1.0,57527.0,57522.0,0.43455625]
[1617509162888,1.0,57527.0,57503.0,0.09171227]
[1617509162889,1.5,57526.0,57519.0,0.43474826]
[1617509163088,0.0524,57525.0,57519.0,0.43474826]
[1617509163289,0.0524,57525.0,57513.0,0.43522501]
[1617509163290,1.0,57520.0,57513.0,0.43522501]
[1617509163488,0.10725655,57514.0,57513.0,0.43522501]
[1617509163690,0.10725655,57514.0,57503.0,0.09172685]
[1617509163691,0.10725655,57514.0,57511.0,0.43490503]
[1617509164290,1.0,57512.0,57509.0,0.43437104]
[1617509164489,4.0582,57512.0,57510.0,0.43437795]
[1617509164890,3.0582,57512.0,57511.0,0.43412888]
[1617509165490,3.0582,57512.0,57511.0,0.54138543]
[1617509165691,4.0582,57512.0,57511.0,0.43412888]
[1617509165891,3.0582,57512.0,57511.0,0.43412888]
[1617509167593,3.0582,57512.0,57511.0,1.03379326]
[1617509168192,3.0582,57512.0,57511.0,0.92653671]
[1617509168393,4.0582,57512.0,57511.0,0.43412888]
[1617509168993,3.0582,57512.0,57511.0,0.43412888]
[1617509169694,4.0582,57512.0,57511.0,0.43412888]
[1617509170296,3.0582,57512.0,57511.0,0.43412888]
[1617509170497,0.10725655,57514.0,57511.0,0.54138888]
[1617509170695,0.10725655,57514.0,57513.0,3.4454]
[1617509171098,0.10725655,57514.0,57513.0,3.87870415]
[1617509171497,0.10725655,57514.0,57513.0,3.97042692]
[1617509171699,0.10725655,57514.0,57513.0,4.07768347]
[1617509175201,0.10725655,57514.0,57513.0,3.97042692]
[1617509175802,0.10725655,57514.0,57513.0,3.4454]
[1617509176402,0.25816655,57514.0,57512.0,0.43384032]
[1617509176604,1.25816655,57514.0,57512.0,0.43384032]
[1617509177003,1.25816655,57514.0,57511.0,0.43413027]
[1617509177203,3.5861,57512.0,57511.0,0.43413027]
[1617509177405,3.5861,57512.0,57510.0,0.4343072]
[1617509177806,4.5861,57512.0,57509.0,0.43445872]
[1617509178006,1.0,57511.0,57509.0,0.43445872]
[1617509178608,1.0,57511.0,57505.0,0.4349269]
[1617509179806,0.10725655,57506.0,57505.0,0.4349269]
[1617509180007,0.10725655,57506.0,57499.0,0.49423511]
[1617509180008,1.10725655,57506.0,57504.0,0.43506347]
[1617509180406,1.10725655,57506.0,57499.0,0.49423511]
[1617509180407,1.10725655,57506.0,57505.0,0.79063951]
[1617509181010,0.10725655,57506.0,57505.0,0.79063951]
[1617509184112,0.10725655,57506.0,57505.0,0.35578778]
[1617509184313,1.10725655,57506.0,57505.0,0.35578778]
[1617509185814,4.35375655,57506.0,57505.0,0.35578778]
[1617509186214,4.35375655,57506.0,57503.0,0.35603828]
[1617509186616,4.35375655,57506.0,57501.0,0.35616238]
[1617509187016,4.35375655,57506.0,57500.0,0.35620146]
[1617509187715,1.0,57501.0,57500.0,0.35620146]
[1617509187917,1.14184,57501.0,57497.0,0.35538276]
[1617509189716,1.0,57498.0,57497.0,0.35538276]
[1617509189917,1.10725655,57498.0,57497.0,0.35538276]
[1617509190318,0.10725655,57498.0,57497.0,0.35538276]
[1617509190818,0.10725655,57498.0,57496.0,0.35557259]
[1617509192119,0.10725655,57498.0,57497.0,0.35565911]
[1617509192518,0.10725655,57498.0,57497.0,0.41682798]
[1617509192919,0.10725655,57498.0,57496.0,0.13083]
[1617509193521,0.10725655,57498.0,57497.0,0.01]
[1617509193921,0.10725655,57498.0,57494.0,3.1355]
[1617509196326,0.10725655,57498.0,57494.0,3.57022058]
[1617509196725,0.10725655,57498.0,57495.0,0.01]
[1617509197726,0.10725655,57498.0,57495.0,0.44465514]
[1617509198931,0.10725655,57498.0,57495.0,0.01]
[1617509200135,1.10725655,57498.0,57495.0,0.01]
[1617509200736,0.10725655,57498.0,57495.0,0.01]
[1617509201737,1.10725655,57498.0,57495.0,0.01]
[1617509202636,1.26323655,57498.0,57495.0,0.01]
[1617509205340,3.3478,57496.0,57495.0,0.01]
[1617509205539,3.3478,57496.0,57489.0,0.43478255]
[1617509205740,3.3478,57496.0,57483.0,0.60137899]
[1617509205741,4.3478,57496.0,57488.0,0.43512729]
[1617509205942,0.10725655,57489.0,57488.0,0.43512729]
[1617509206139,0.10725655,57489.0,57486.0,0.43522318]
[1617509207140,0.10725655,57489.0,57487.0,0.43515792]
[1617509207540,0.10725655,57489.0,57486.0,0.43521276]
[1617509207841,0.10725655,57489.0,57487.0,0.43519845]
[1617509208843,0.10725655,57489.0,57486.0,0.43522507]
[1617509209244,0.10725655,57489.0,57487.0,0.43521667]
[1617509209645,0.10725655,57489.0,57488.0,0.01]
[1617509210044,0.10725655,57489.0,57486.0,0.43504131]
[1617509211350,0.10725655,57489.0,57488.0,0.43533368]
[1617509212552,0.10725655,57489.0,57488.0,0.01]
[1617509212953,0.10725655,57489.0,57488.0,0.43548804]
[1617509216359,0.10725655,57489.0,57487.0,0.43546123]
[1617509217657,0.10725655,57489.0,57488.0,0.43563245]
[1617509218060,0.10725655,57489.0,57488.0,0.01]
[1617509218460,0.10725655,57489.0,57486.0,0.43606882]
[1617509219861,1.0,57488.0,57486.0,0.43606882]
[1617509220061,1.0,57487.0,57486.0,0.43606882]
[1617509220263,0.10725655,57489.0,57486.0,0.43606882]
[1617509220462,1.0,57487.0,57486.0,0.01]
[1617509220861,1.0,57487.0,57483.0,0.43633293]
[1617509221062,1.0,57487.0,57481.0,0.43656186]
[1617509221462,1.0,57487.0,57479.0,0.43675032]
[1617509221865,3.5007,57481.0,57480.0,0.01]
[1617509222062,3.64861,57481.0,57480.0,0.01]
[1617509222263,3.64861,57481.0,57477.0,0.4976496]
[1617509222463,0.10725655,57478.0,57477.0,0.4976496]
[1617509222663,0.10725655,57478.0,57476.0,0.49770356]
[1617509222864,1.10725655,57478.0,57476.0,0.49770356]
[1617509223067,1.10725655,57478.0,57477.0,0.43813293]
[1617509223263,1.10725655,57478.0,57477.0,0.44813293]
[1617509223665,1.10725655,57478.0,57477.0,0.43813293]
[1617509223864,1.10725655,57478.0,57477.0,0.44813293]
[1617509231979,1.10725655,57478.0,57477.0,0.01]
[1617509232177,0.10725655,57478.0,57477.0,0.01]
[1617509232380,0.10725655,57478.0,57477.0,0.43908731]
[1617509232781,0.10725655,57478.0,57477.0,0.44908731]
[1617509234879,1.10725655,57478.0,57477.0,0.44908731]
[1617509235780,1.10725655,57478.0,57477.0,0.01]
[1617509236181,1.10725655,57478.0,57477.0,0.44020235]
[1617509236581,1.10725655,57478.0,57477.0,0.45020235]
[1617509236783,1.10725655,57478.0,57477.0,0.01]
[1617509237181,0.10725655,57478.0,57470.0,0.49998523]
[1617509237581,0.10725655,57478.0,57463.0,0.55990649]
[1617509237582,0.10725655,57478.0,57471.0,0.50991651]
[1617509237781,0.10725655,57478.0,57477.0,0.43986269]
[1617509238382,0.10725655,57478.0,57477.0,0.44986269]
[1617509241785,0.10725655,57478.0,57477.0,0.01]
[1617509242186,0.10725655,57478.0,57475.0,3.7292102]
[1617509242387,0.27544655,57478.0,57475.0,3.7292102]
[1617509242585,0.27544655,57478.0,57475.0,3.2892]
[1617509242787,0.27544655,57478.0,57476.0,0.01]
[1617509243988,0.10725655,57478.0,57476.0,0.01]
[1617509245993,0.10725655,57478.0,57477.0,0.43992332]
[1617509246193,0.10725655,57478.0,57477.0,0.58004332]
[1617509247493,0.44665769,57498.0,57477.0,3.81516396]
[1617509247893,0.44665769,57498.0,57477.0,4.82516396]
[1617509248094,0.035,57500.0,57487.0,0.43925276]
[1617509248495,0.035,57500.0,57499.0,0.10725655]
[1617509248695,0.035,57500.0,57499.0,3.44734655]
[1617509249698,1.035,57500.0,57499.0,3.44734655]
[1617509249896,1.035,57500.0,57499.0,0.24714655]
[1617509250196,3.8927,57500.0,57499.0,0.24714655]
[1617509250495,3.99995655,57500.0,57499.0,0.24714655]
[1617509252096,3.99995655,57500.0,57499.0,0.13989]
[1617509252299,4.44658815,57500.0,57486.0,3.07284884]
[1617509252497,4.3393316,57500.0,57490.0,0.10725655]
[1617509252699,4.3393316,57500.0,57486.0,2.6332]
[1617509253301,0.44665369,57499.0,57486.0,2.6332]
[1617509253700,1.0,57495.0,57486.0,2.6332]
[1617509253901,1.0,57495.0,57484.0,0.43986926]
[1617509254100,3.2522,57486.0,57484.0,0.43986926]
[1617509254301,1.0,57485.0,57484.0,0.43986926]
[1617509254701,1.10725655,57485.0,57484.0,0.43986926]